bitfinex/quotes_SOLUSD_20260119
["timestamp","ask_amount","ask_price","bid_price","bid_amount"]
[1768843696451,1.3421332,134.42,134.38,1.36796498]
[1768843696628,1.3421332,134.41,134.38,1.36796498]
[1768843696827,16.3,134.4,134.38,8.8093267]
[1768843698832,1.3421332,134.43,134.39,1.36796498]
[1768843699154,16.3,134.43,134.41,4.34406263]
[1768843700436,16.3,134.43,134.41,8.80778074]
[1768843700635,16.3,134.43,134.41,11.78387839]
[1768843700951,17.6421332,134.43,134.41,7.43981576]
[1768843701655,1.3421332,134.43,134.41,7.43981576]
[1768843701958,16.3,134.42,134.41,7.43981576]
[1768843702447,1.3421332,134.43,134.4,11.78425835]
[1768843702650,16.3,134.42,134.4,11.78425835]
[1768843702848,1.3421332,134.43,134.4,11.78425835]
[1768843703153,16.3,134.42,134.4,11.78425835]
[1768843703556,1.3421332,134.43,134.4,10.41629337]
[1768843703733,16.3,134.42,134.41,7.44201662]
[1768843704248,1.40227439,134.43,134.41,7.44201662]
[1768843704629,16.3,134.42,134.41,7.44201662]
[1768843704854,1.40227439,134.43,134.41,7.44201662]
[1768843705056,16.3,134.42,134.4,8.79720801]
[1768843705750,17.70227439,134.43,134.41,7.43987564]
[1768843705942,1.40227439,134.43,134.41,7.43987564]
[1768843706134,17.70227439,134.43,134.41,7.43987564]
[1768843706537,0.76382048,134.42,134.39,1.35701229]
[1768843706747,20.03991813,134.42,134.38,8.79829761]
[1768843709252,0.76164614,134.4,134.37,7.44186768]
[1768843709551,0.76164614,134.4,134.37,8.79887997]
[1768843711755,3.73774379,134.4,134.37,8.79887997]
[1768843711940,0.76164614,134.4,134.37,8.79887997]
[1768843715360,0.76164614,134.4,134.36,7.44245376]
[1768843715663,0.75583864,134.37,134.34,1.35701229]
[1768843715865,0.75583864,134.37,134.34,7.44357668]
[1768843718176,0.7545643,134.35,134.31,11.77824522]
[1768843718544,0.7545643,134.35,134.32,1.35701229]
[1768843720065,11.17651911,134.36,134.32,8.80171989]
[1768843720244,16.3,134.35,134.32,11.7819328]
[1768843721966,11.17651911,134.36,134.32,11.7819328]
[1768843722163,23.74326909,134.35,134.32,1.35701229]
[1768843722458,0.75150432,134.34,134.3,1.41175222]
[1768843722651,0.75150432,134.34,134.31,1.41175222]
[1768843723462,0.75150432,134.34,134.31,8.85713522]
[1768843724064,3.73171723,134.34,134.31,8.85713522]
[1768843724662,3.73171723,134.34,134.31,1.41175222]
[1768843725265,3.73171723,134.34,134.31,8.85716588]
[1768843726178,3.73171723,134.34,134.31,1.41175222]
[1768843726646,3.728829,134.32,134.29,1.41175222]
[1768843726851,2.98021291,134.31,134.29,1.41175222]
[1768843727256,20.028829,134.32,134.29,1.41175222]
[1768843727966,2.98021291,134.31,134.29,1.41175222]
[1768843732752,20.028829,134.32,134.29,1.41175222]
[1768843732957,2.98021291,134.32,134.29,1.41175222]
[1768843733277,16.3,134.32,134.3,1.27685793]
[1768843736074,8.18890807,134.33,134.3,1.27685793]
[1768843736275,27.46912098,134.33,134.3,1.27685793]
[1768843741180,16.3,134.35,134.32,1.27685793]
[1768843741374,20.02110106,134.35,134.32,1.27685793]
[1768843742067,27.46477364,134.35,134.32,1.27685793]
[1768843742379,24.48456073,134.35,134.32,1.27685793]
[1768843743587,24.48456073,134.35,134.32,4.25707084]
[1768843744784,8.18456073,134.35,134.32,4.25707084]
[1768843745190,0.7390437,134.37,134.34,4.25707084]
[1768843745369,17.0390437,134.37,134.34,4.25707084]
[1768843746376,8.18157625,134.37,134.34,4.25707084]
[1768843747085,8.18118931,134.37,134.34,4.25707084]
[1768843751590,8.18118931,134.37,134.34,1.27685793]
[1768843751887,8.18118931,134.37,134.34,4.25707084]
[1768843756997,8.18118931,134.37,134.34,1.27685793]
[1768843757289,24.48118931,134.37,134.34,4.25707084]
[1768843758100,8.18118931,134.37,134.34,4.25707084]
[1768843758286,24.48118931,134.37,134.34,4.25707084]
[1768843758714,8.18118931,134.37,134.34,4.25707084]
[1768843758872,0.73321981,134.4,134.37,1.27685793]
[1768843759370,17.03321981,134.4,134.37,4.25707084]
[1768843760095,8.1740495,134.39,134.37,2.98021291]
[1768843760698,7.44121074,134.39,134.37,4.25707084]
[1768843761781,17.03246208,134.4,134.37,4.25707084]
[1768843761782,8.17319718,134.4,134.38,2.98021291]
[1768843762097,23.7407351,134.4,134.38,1.27685793]
[1768843762295,7.4407351,134.4,134.38,1.27685793]
[1768843762521,19.33289478,134.41,134.38,1.27685793]
[1768843762522,24.47223446,134.41,134.38,1.27685793]
[1768843763202,8.17223446,134.41,134.38,1.27685793]
[1768843763895,24.47223446,134.41,134.38,1.27685793]
[1768843764096,8.17223446,134.41,134.38,1.27685793]
[1768843764874,24.47223446,134.41,134.38,1.27685793]
[1768843765300,8.17223446,134.41,134.38,1.27685793]
[1768843765596,24.47223446,134.41,134.38,1.27685793]
[1768843765778,8.17223446,134.41,134.38,1.27685793]
[1768843765980,24.47223446,134.41,134.38,1.27685793]
[1768843766283,8.17223446,134.41,134.38,1.27685793]
[1768843766898,24.47223446,134.41,134.38,1.27685793]
[1768843769203,8.17223446,134.41,134.38,1.27685793]
[1768843769404,24.47223446,134.41,134.38,1.27685793]
[1768843769704,24.47223446,134.41,134.38,4.25707084]
[1768843770009,8.17223446,134.41,134.38,4.25707084]
[1768843771104,8.17223446,134.41,134.38,1.27685793]
[1768843771300,24.47223446,134.41,134.38,1.27685793]
[1768843771982,8.17223446,134.41,134.38,1.27685793]
[1768843772184,24.47223446,134.41,134.38,1.27685793]
[1768843772590,8.17223446,134.41,134.38,1.27685793]
[1768843772790,24.47223446,134.41,134.38,1.27685793]
[1768843773103,8.17223446,134.41,134.38,1.27685793]
[1768843773306,24.47223446,134.41,134.38,1.27685793]
[1768843773709,8.17223446,134.41,134.38,1.27685793]
[1768843773886,24.47223446,134.41,134.38,1.27685793]
[1768843774404,8.17223446,134.41,134.38,1.27685793]
[1768843775296,24.47223446,134.41,134.38,1.27685793]
[1768843775498,8.17223446,134.41,134.38,1.27685793]
[1768843775899,24.47223446,134.41,134.38,1.27685793]
[1768843776611,8.17223446,134.41,134.38,1.27685793]
[1768843776910,24.47223446,134.41,134.38,1.27685793]
[1768843777110,8.17223446,134.41,134.38,1.27685793]
[1768843777626,24.47223446,134.41,134.38,1.27685793]
[1768843777988,8.17223446,134.41,134.38,1.27685793]
[1768843778615,24.47223446,134.41,134.38,1.27685793]
[1768843778913,8.17223446,134.41,134.38,1.27685793]
[1768843779301,24.47223446,134.41,134.38,1.27685793]
[1768843780595,8.17223446,134.41,134.38,1.27685793]
[1768843781310,24.47223446,134.41,134.38,1.27685793]
[1768843781919,8.17223446,134.41,134.38,1.27685793]
[1768843782294,24.47223446,134.41,134.38,1.27685793]
[1768843782613,24.4642345,134.42,134.39,4.27746144]
[1768843783117,8.1642345,134.42,134.39,4.27746144]
[1768843783319,24.4642345,134.42,134.39,4.27746144]
[1768843785616,8.1642345,134.42,134.39,4.27746144]
[1768843785819,24.4642345,134.42,134.39,4.27746144]
[1768843786621,8.1642345,134.42,134.39,4.27746144]
[1768843786824,24.4642345,134.42,134.39,4.27746144]
[1768843788518,24.4642345,134.42,134.39,1.30010151]
[1768843789733,17.02461238,134.42,134.39,1.30010151]
[1768843790032,0.72461238,134.42,134.39,1.30010151]
[1768843791222,0.72461238,134.42,134.39,8.74108272]
[1768843792461,0.72461238,134.42,134.39,11.71844265]
[1768843792720,0.72461238,134.42,134.39,1.30010151]
[1768843793024,11.14135763,134.42,134.39,1.30010151]
[1768843793223,0.72168057,134.4,134.36,1.35340145]
[1768843793431,3.6990405,134.4,134.37,1.35340145]
[1768843793616,0.72143206,134.39,134.36,1.35340145]
[1768843793821,3.69879199,134.4,134.37,1.35340145]
[1768843794301,3.69879199,134.39,134.36,8.79581691]
[1768843794811,2.97735993,134.39,134.37,1.35340145]
[1768843795506,27.43910031,134.4,134.37,1.35340145]
[1768843799236,19.99854633,134.4,134.37,1.35340145]
[1768843799530,16.3,134.4,134.37,4.33076138]
[1768843799709,16.3,134.4,134.37,1.35340145]
[1768843800648,17.01977058,134.4,134.37,1.35340145]
[1768843800938,0.71977058,134.4,134.37,1.35340145]
[1768843801432,8.16025178,134.4,134.37,1.35340145]
[1768843807832,11.13761171,134.4,134.37,1.35340145]
[1768843808452,0.71802919,134.37,134.34,1.35340145]
[1768843808815,3.69538912,134.35,134.31,8.79857284]
[1768843809540,3.69538912,134.35,134.32,1.35340145]
[1768843810233,2.97735993,134.34,134.32,1.35340145]
[1768843811439,11.13871296,134.35,134.32,1.35340145]
[1768843815440,3.69538912,134.35,134.32,1.35340145]
[1768843816550,7.44287576,134.36,134.32,1.35340145]
[1768843816751,10.42023569,134.36,134.32,1.35340145]
[1768843817051,27.43667722,134.36,134.32,1.35340145]
[1768843818038,11.13667722,134.36,134.32,1.35340145]
[1768843819844,11.13667722,134.36,134.32,4.33076138]
[1768843820145,11.13667722,134.36,134.33,1.35340145]
[1768843821625,10.42023569,134.36,134.33,1.35340145]
[1768843822145,11.13575691,134.36,134.33,1.35340145]
[1768843828346,8.15839698,134.36,134.33,1.35340145]
[1768843828645,11.13575691,134.36,134.33,1.35340145]
[1768843829984,18.6053066,134.38,134.34,1.34606767]
[1768843829985,0.71399288,134.38,134.34,1.34606767]
[1768843830247,8.15527837,134.39,134.36,1.34606767]
[1768843830638,11.1326383,134.39,134.36,1.34606767]
[1768843832356,8.15527837,134.39,134.36,1.34606767]
[1768843832542,11.1326383,134.39,134.36,1.34606767]
[1768843834348,8.15527837,134.39,134.36,1.34606767]
[1768843834555,11.1326383,134.39,134.36,1.34606767]
[1768843835656,2.97735993,134.38,134.36,1.34606767]
[1768843837252,24.45527837,134.39,134.36,1.34606767]
[1768843837445,11.1326383,134.39,134.36,1.34606767]
[1768843838353,27.4326383,134.39,134.36,1.34606767]
[1768843838758,11.1326383,134.39,134.36,1.34606767]
[1768843838960,27.4326383,134.39,134.36,1.34606767]
[1768843840260,11.1326383,134.39,134.36,1.34606767]
[1768843840459,27.4326383,134.39,134.36,1.34606767]
[1768843840664,11.1326383,134.39,134.36,1.34606767]
[1768843840858,11.13404047,134.39,134.36,1.34606767]
[1768843843163,27.43404047,134.39,134.36,1.34606767]
[1768843843355,11.13404047,134.39,134.36,1.34606767]
[1768843844158,23.74074715,134.4,134.37,1.31564689]
[1768843844360,7.44074715,134.4,134.37,1.31564689]
[1768843844955,8.15238604,134.4,134.37,1.31564689]
[1768843846567,11.13114814,134.4,134.37,1.31564689]
[1768843847565,3.69013617,134.38,134.35,8.75881585]
[1768843847749,2.9787621,134.37,134.35,1.31564689]
[1768843848451,2.9787621,134.37,134.33,1.31564689]
[1768843848673,2.9787621,134.34,134.31,1.31564689]
[1768843848970,42.34566624,134.38,134.3,1.31564689]
[1768843848971,2.9787621,134.32,134.3,1.31564689]
[1768843849179,2.9787621,134.31,134.3,1.31564689]
[1768843849681,2.9787621,134.31,134.27,0.2]
[1768843849848,2.9787621,134.3,134.27,0.2]
[1768843850047,2.9787621,134.29,134.27,0.2]
[1768843851645,2.9787621,134.29,134.27,1.51564689]
[1768843853778,10.4253483,134.29,134.27,1.51564689]
[1768843854081,11.7835461,134.29,134.27,0.2]
[1768843854377,10.4253483,134.29,134.27,1.57404742]
[1768843857275,7.4465862,134.29,134.27,1.57404742]
[1768843857494,2.9787621,134.29,134.27,1.57404742]
[1768843857779,8.80446544,134.3,134.27,1.57404742]
[1768843857985,2.9787621,134.29,134.27,1.57404742]
[1768843858691,4.3369599,134.29,134.27,0.2]
[1768843859382,11.78387989,134.29,134.27,0.2]
[1768843860481,11.78387989,134.29,134.25,0.2]
[1768843860482,1.3581978,134.27,134.25,0.2]
[1768843860675,4.3369599,134.27,134.25,0.2]
[1768843861557,2.9787621,134.26,134.25,0.2]
[1768843862082,11.78469306,134.27,134.25,0.2]
[1768843863178,8.80546694,134.28,134.25,1.57404742]
[1768843863359,11.78422904,134.28,134.25,1.57404742]
[1768843864584,8.80546694,134.28,134.25,1.57404742]
[1768843864956,7.44679375,134.29,134.26,1.37404742]
[1768843865262,7.44679375,134.29,134.27,1.37404742]
[1768843879089,7.44679375,134.29,134.25,0.2]
[1768843879090,1.3581978,134.28,134.25,0.2]
[1768843879275,4.3369599,134.28,134.25,0.2]
[1768843879794,1.3581978,134.26,134.23,0.2]
[1768843880290,4.3369599,134.27,134.23,0.2]
[1768843881188,11.7850591,134.27,134.24,1.37404742]
[1768843881894,1.3581978,134.24,134.23,1e-08]
[1768843882197,1.3581978,134.23,134.21,0.2]
[1768843882979,4.25261525,134.24,134.21,1.46255841]
[1768843883193,1.27385315,134.23,134.21,0.2]
[1768843883900,4.25261525,134.23,134.21,1.46255841]
[1768843884079,2.91876211,134.23,134.21,1.46255841]
[1768843884701,4.25261525,134.22,134.21,0.2]
[1768843885091,2.9787621,134.22,134.21,0.2]
[1768843885488,2.9787621,134.22,134.2,0.2]
[1768843885489,1.27385315,134.21,134.2,0.2]
[1768843886003,1.27385315,134.2,134.17,25.0353744]
[1768843886210,8.72430762,134.22,134.18,1.26255841]
[1768843886378,2.9787621,134.21,134.18,1.26255841]
[1768843887013,4.25261525,134.21,134.18,1.26255841]
[1768843887180,11.70388687,134.21,134.18,1.26255841]
[1768843888685,2.9787621,134.21,134.18,1.26255841]
[1768843889078,8.72458226,134.22,134.18,1.26255841]
[1768843889282,11.70334436,134.22,134.18,1.26255841]
[1768843890188,2.9787621,134.21,134.18,1.26255841]
[1768843890490,4.25261525,134.21,134.18,1.26255841]
[1768843890687,4.25261525,134.21,134.17,1e-08]
[1768843890688,4.25261525,134.21,134.17,1.26255842]
[1768843890888,4.25261525,134.2,134.17,1.26255842]
[1768843891302,1.27385315,134.19,134.17,1e-08]
[1768843893906,4.25261525,134.19,134.17,1e-08]
[1768843894410,4.25261525,134.18,134.17,1e-08]
[1768843894715,1.27385315,134.17,134.15,0.2]
[1768843894919,4.25261525,134.17,134.15,0.2]
[1768843895116,2.9787621,134.16,134.15,0.2]
[1768843895321,4.25261525,134.16,134.15,0.2]
[1768843895606,4.25261525,134.16,134.14,0.2]
[1768843896412,4.25261525,134.15,134.13,0.2]
[1768843897811,1.27385315,134.15,134.13,0.2]
[1768843898795,1.27385315,134.14,134.13,0.2]
[1768843899101,4.19261526,134.14,134.13,1e-08]
[1768843899419,4.19261526,134.14,134.12,0.2]
[1768843899801,11.58782786,134.14,134.12,0.2]
[1768843900393,2.9787621,134.13,134.12,0.2]
[1768843900594,11.58782786,134.14,134.12,0.2]
[1768843901094,2.99045104,134.13,134.11,0.2]
[1768843901810,4.29225921,134.13,134.11,0.2]
[1768843902187,1.30180817,134.14,134.11,1.55835159]
[1768843902392,8.75638176,134.15,134.12,1.35835159]
[1768843903515,8.75638176,134.15,134.11,9.01478063]
[1768843903815,1.30180817,134.14,134.11,4.54880263]
[1768843905921,1.30180817,134.14,134.11,1.55835159]
[1768843906110,7.45457359,134.15,134.11,3.19045104]
[1768843906310,4.29225921,134.17,134.14,1.35835159]
[1768843906626,4.29225921,134.17,134.13,1.35835159]
[1768843906794,1.30180817,134.16,134.13,1.35835159]
[1768843912826,1.30180817,134.16,134.13,4.34880263]
[1768843913134,1.30180817,134.16,134.13,1.35835159]
[1768843914107,8.75559932,134.16,134.13,1.35835159]
[1768843914928,1.32849725,134.14,134.11,9.01608476]
[1768843915336,1.32849725,134.14,134.11,1.55980023]
[1768843915830,11.77351271,134.15,134.11,4.55025127]
[1768843916035,1.32849725,134.14,134.11,1.55980023]
[1768843916325,1.32849725,134.13,134.11,0.2]
[1768843916532,4.31894829,134.13,134.11,0.2]
[1768843918529,1.32849725,134.15,134.11,1.55980023]
[1768843918729,4.31894829,134.15,134.12,1.35980023]
[1768843918910,1.32849725,134.15,134.12,1.35980023]
[1768843919612,8.78294532,134.15,134.12,1.35980023]
[1768843921327,1.32849725,134.15,134.12,4.35025127]
[1768843921730,1.26849726,134.15,134.12,4.35025127]
[1768843922235,11.71332584,134.15,134.12,1.35980023]
[1768843922434,10.44482858,134.15,134.11,1.55980023]
[1768843923917,1.32849725,134.14,134.11,1.55980023]
[1768843924834,4.31894829,134.14,134.11,1.55980023]
[1768843925620,11.77399117,134.14,134.11,1.55980023]
[1768843927430,8.78354013,134.14,134.11,1.55980023]
[1768843927612,1.32849725,134.14,134.11,1.55980023]
[1768843927812,8.78252624,134.16,134.12,1.35980023]
[1768843928135,1.32849725,134.15,134.12,1.35980023]
[1768843930317,1.32849725,134.15,134.11,10.64696556]
[1768843930318,1.32849725,134.13,134.11,0.2]
[1768843930518,4.2589483,134.13,134.11,0.2]
[1768843931219,1.26849726,134.13,134.11,0.2]
[1768843931737,10.4453489,134.14,134.11,1.55980023]
[1768843932615,11.71384616,134.14,134.11,1.55980023]
[1768843932831,11.65384617,134.14,134.11,1.55980023]
[1768843933034,1.32849725,134.14,134.11,1.55980023]
[1768843933434,1.26849726,134.14,134.11,1.55980023]
[1768843933937,11.71385946,134.14,134.11,1.55980023]
[1768843936438,8.72340842,134.14,134.11,1.55980023]
[1768843936746,1.26849726,134.14,134.11,1.55980023]
[1768843937650,8.72349574,134.14,134.11,1.55980023]
[1768843938347,11.71394678,134.14,134.11,1.55980023]
[1768843939228,8.72349574,134.14,134.11,1.55980023]
[1768843939532,8.66349575,134.14,134.11,1.55980023]
[1768843940047,7.45499848,134.14,134.11,1.55980023]
[1768843940848,7.45447487,134.15,134.12,1.35980023]
[1768843941022,4.53165187,134.14,134.12,1.35980023]
[1768843941227,7.45447487,134.15,134.12,1.35980023]
[1768843941434,4.53172071,134.14,134.12,1.35980023]
[1768843941638,8.78297212,134.15,134.12,1.35980023]
[1768843941834,4.53231197,134.14,134.12,1.35980023]
[1768843942036,11.77342316,134.15,134.12,1.35980023]
[1768843942241,4.53228238,134.14,134.12,1.35980023]
[1768843942428,8.78297212,134.15,134.12,1.35980023]
[1768843942628,4.53207452,134.14,134.12,1.35980023]
[1768843942934,11.77342316,134.15,134.12,1.35980023]
[1768843943133,4.53221562,134.14,134.12,1.35980023]
[1768843943340,11.77342316,134.15,134.12,1.35980023]
[1768843943647,4.53215251,134.14,134.12,1.35980023]
[1768843943853,11.77342316,134.15,134.12,1.35980023]
[1768843944054,4.53215481,134.14,134.12,1.35980023]
[1768843944344,8.78297212,134.15,134.12,1.35980023]
[1768843944548,4.5323084,134.14,134.12,1.35980023]
[1768843944846,11.77342316,134.15,134.12,1.35980023]
[1768843945054,4.53216706,134.14,134.12,1.35980023]
[1768843945241,8.78297212,134.15,134.12,1.35980023]
[1768843945551,4.53216231,134.14,134.12,1.35980023]
[1768843945741,8.78297212,134.15,134.12,1.35980023]
[1768843945944,4.53216231,134.14,134.12,1.35980023]
[1768843946249,8.78297212,134.15,134.12,1.35980023]
[1768843946445,4.53226726,134.14,134.12,1.35980023]
[1768843946631,8.78297212,134.15,134.12,1.35980023]
[1768843946831,4.53226496,134.14,134.12,1.35980023]
[1768843947039,8.78297212,134.15,134.12,1.35980023]
[1768843947343,1.25371647,134.19,134.15,1.23881323]
[1768843947647,1.25371647,134.18,134.14,4.22926427]
[1768843947952,8.70694744,134.17,134.14,1.23881323]
[1768843948544,8.70694744,134.17,134.14,4.22926427]
[1768843949547,8.70694744,134.17,134.14,1.23881323]
[1768843951031,11.69739848,134.17,134.14,1.23881323]
[1768843951349,4.24416751,134.15,134.12,1.23881323]
[1768843952143,1.25371647,134.15,134.12,1.23881323]
[1768843952856,8.70809665,134.15,134.12,1.23881323]
[1768843953255,11.69854769,134.15,134.12,1.23881323]
[1768843957858,7.45406583,134.16,134.14,1.23881323]
[1768843958559,7.45357123,134.17,134.15,1.23881323]
[1768843958949,4.47529511,134.16,134.15,1.23881323]
[1768843959260,7.45357123,134.17,134.15,1.23881323]
[1768843962761,1.31264255,134.17,134.15,1.23881323]
[1768843963267,1.31264255,134.2,134.17,1.30184498]
[1768843963467,8.76420737,134.2,134.17,4.28976124]
[1768843964141,7.45124212,134.21,134.18,4.28976124]
[1768843964656,8.76388467,134.21,134.18,4.28976124]
[1768843965964,7.45067506,134.22,134.2,4.28976124]
[1768843966147,1.31264255,134.23,134.2,4.28976124]
[1768843966353,1.31264255,134.22,134.2,2.98791626]
[1768843966551,1.31264255,134.22,134.2,2.95791626]
[1768843966862,1.31264255,134.22,134.19,4.28976124]
[1768843967563,8.76320981,134.22,134.19,4.28976124]
[1768843967766,8.76320981,134.22,134.19,2.98791626]
[1768843972366,1.31264255,134.21,134.19,2.98791626]
[1768843973444,1.31264255,134.21,134.18,1.30184498]
[1768843973645,1.31264255,134.21,134.19,2.98791626]
[1768843975866,1.31264255,134.21,134.18,1.30184498]
[1768843976059,1.31264255,134.21,134.19,2.98791626]
[1768843981469,8.76375056,134.21,134.19,2.98791626]
[1768843981669,8.76375056,134.21,134.18,4.26429488]
[1768843981966,8.76375056,134.21,134.19,2.98791626]
[1768843982171,1.31264255,134.21,134.18,4.26429488]
[1768843983151,18.62474856,134.23,134.19,1.27637862]
[1768843983152,1.31058238,134.23,134.19,1.27637862]
[1768843983356,1.31058238,134.28,134.23,1.27637862]
[1768843983552,1.31058238,134.27,134.25,2.98791626]
[1768843983757,1.31058238,134.27,134.25,2.95791626]
[1768843983958,1.31058238,134.27,134.25,2.92791626]
[1768843984159,1.31058238,134.27,134.24,4.26429488]
[1768843984874,1.31058238,134.27,134.25,2.98791626]
[1768843985172,1.31058238,134.28,134.25,4.23429488]
[1768843986776,1.31058238,134.28,134.25,1.27637862]
[1768843987383,1.31058238,134.28,134.25,1.24637862]
[1768843987765,8.75781001,134.28,134.25,1.24637862]
[1768843991079,1.31058238,134.28,134.25,4.23429488]
[1768843992574,7.44720241,134.28,134.2,96.44801587]
[1768843992886,1.31058238,134.27,134.24,1.27637862]
[1768843993578,1.31058238,134.27,134.24,4.26429488]
[1768843994476,1.31058238,134.28,134.25,4.26429488]
[1768843994781,8.75776519,134.28,134.25,4.23429488]
[1768843996170,4.29849864,134.27,134.22,10.43804353]
[1768843996361,1.31058238,134.27,134.23,2.98791626]
[1768843996562,8.75853497,134.27,134.24,1.27637862]
[1768843999374,1.31058238,134.25,134.23,1.27637862]
[1768843999569,1.31058238,134.25,134.22,1.27637862]
[1768843999888,4.29849864,134.26,134.22,1.27637862]
[1768844002292,8.75928621,134.26,134.24,1.27637862]
[1768844002494,8.75928621,134.26,134.23,1.27637862]
[1768844002791,1.32208826,134.25,134.22,1.25832308]
[1768844003379,4.31000452,134.25,134.22,1.25832308]
[1768844004496,8.77143271,134.24,134.21,1.25832308]
[1768844004692,4.31000452,134.23,134.2,1.25832308]
[1768844005000,4.25000453,134.23,134.2,1.25832308]
[1768844006300,1.26208827,134.23,134.2,1.25832308]
[1768844007604,1.20208828,134.23,134.2,1.25832308]
[1768844007795,1.14208829,134.23,134.2,1.25832308]
[1768844007989,8.59201373,134.23,134.2,1.25832308]
[1768844008190,11.57992999,134.23,134.2,1.25832308]
[1768844012311,4.31000452,134.22,134.19,1.25832308]
[1768844012607,1.32208826,134.21,134.18,1.25832308]
[1768844013706,8.77365308,134.2,134.17,17.57832308]
[1768844013914,11.76156934,134.2,134.17,17.57832308]
[1768844014225,10.43948108,134.2,134.18,1.25832308]
[1768844014412,10.37948109,134.2,134.18,1.25832308]
[1768844014713,7.39156483,134.2,134.18,1.25832308]
[1768844014919,11.76119521,134.21,134.18,1.25832308]
[1768844015813,1.32208826,134.21,134.18,1.25832308]
[1768844016199,8.77276567,134.22,134.18,1.25832308]
[1768844016521,11.76068193,134.22,134.18,1.25832308]
[1768844020041,11.76068193,134.22,134.18,8.71094571]
[1768844021425,11.76068193,134.22,134.19,1.29038058]
[1768844022234,8.79369009,134.23,134.2,1.29038058]
[1768844022611,11.78160635,134.23,134.2,1.29038058]
[1768844023333,8.79369009,134.23,134.2,1.29038058]
[1768844023630,11.78160635,134.23,134.2,1.29038058]
[1768844024938,11.77943188,134.23,134.2,1.29038058]
[1768844025333,1.34354181,134.23,134.2,1.29038058]
[1768844025537,1.34354181,134.23,134.21,1.29038058]
[1768844027135,8.79313966,134.24,134.21,1.29038058]
[1768844027934,1.34354181,134.23,134.2,11.72766283]
[1768844029042,1.34354181,134.23,134.2,4.27612237]
[1768844029643,1.34354181,134.21,134.17,89.54899143]
[1768844030119,2.98574179,134.22,134.19,1.29038058]
[1768844030526,4.3292836,134.22,134.19,1.29038058]
[1768844030722,1.34354181,134.22,134.19,1.29038058]
[1768844031735,1.34354181,134.22,134.19,11.72802543]
[1768844032532,1.34354181,134.22,134.19,8.74228364]
[1768844035236,1.24462491,134.22,134.19,1.29038058]
[1768844036320,1.24462491,134.22,134.19,8.74222599]
[1768844036643,1.24462491,134.22,134.19,11.72796778]
[1768844037142,1.24462491,134.24,134.21,1.23372306]
[1768844037323,1.24462491,134.25,134.22,4.21946485]
[1768844037633,1.24462491,134.25,134.22,11.66983839]
[1768844038337,1.24462491,134.25,134.22,8.6840966]
[1768844038527,1.24462491,134.25,134.22,11.66983839]
[1768844039653,1.24462491,134.26,134.23,1.23372306]
[1768844039946,1.24462491,134.26,134.23,11.66936139]
[1768844040175,1.24462491,134.26,134.23,2.98574179]
[1768844041541,1.24462491,134.26,134.23,11.66929068]
[1768844042632,1.24462491,134.26,134.23,4.21946485]
[1768844042832,1.24462491,134.26,134.23,2.98574179]
[1768844043032,1.24462491,134.26,134.22,8.6839266]
[1768844043338,1.24462491,134.26,134.22,11.66966839]
[1768844044047,1.24462491,134.22,134.17,1.23372306]
[1768844044342,29.05461038,134.26,134.19,1.23372306]
[1768844044540,2.98574179,134.22,134.19,1.23372306]
[1768844045348,2.98574179,134.23,134.19,1.23372306]
[1768844046140,1.24462491,134.25,134.19,1.23372306]
[1768844046348,4.2303667,134.22,134.19,1.23372306]
[1768844046844,4.2303667,134.22,134.18,11.67185537]
[1768844047048,1.24462491,134.21,134.18,11.67185537]
[1768844048138,4.2303667,134.22,134.19,1.23372306]
[1768844048446,4.2303667,134.22,134.18,10.43813231]
[1768844048647,1.24462491,134.21,134.18,11.67185537]
[1768844050041,1.24462491,134.21,134.18,8.68611358]
[1768844055554,8.69587921,134.21,134.18,1.23372306]
[1768844056052,11.681621,134.21,134.18,1.23372306]
[1768844056759,8.69587921,134.21,134.18,1.23372306]
[1768844058252,7.4512543,134.21,134.18,1.23372306]
[1768844058432,8.69587921,134.21,134.18,1.23372306]
[1768844058852,1.24462491,134.21,134.18,1.23372306]
[1768844068453,1.24462491,134.21,134.17,27.98379599]
[1768844068659,1.24428699,134.2,134.17,17.54499937]
[1768844068854,1.184287,134.2,134.17,17.54499937]
[1768844069158,1.184287,134.2,134.17,24.99816872]
[1768844069550,10.43635019,134.22,134.18,1.22499937]
[1768844070764,1.24428699,134.21,134.18,1.22499937]
[1768844071661,1.24428699,134.21,134.17,16.32]
[1768844071873,1.24428699,134.18,134.15,24.9992769]
[1768844072362,1.24428699,134.18,134.15,27.98501869]
[1768844072951,1.24428699,134.18,134.15,17.54499937]
[1768844073256,1.24428699,134.19,134.16,1.22499937]
[1768844074451,1.24428699,134.19,134.16,11.66448178]
[1768844075466,1.24428699,134.19,134.16,1.22499937]
[1768844076261,1.24428699,134.19,134.16,8.67875852]
[1768844081157,10.43730661,134.2,134.17,1.31345036]
[1768844081158,8.79347851,134.2,134.17,1.31345036]
[1768844089675,1.34191369,134.19,134.17,1.31345036]
[1768844089972,1.34191369,134.19,134.16,1.31345036]
[1768844091363,1.34191369,134.19,134.16,8.76721135]
[1768844091563,1.34191369,134.19,134.16,7.45376099]
[1768844092170,1.34191369,134.19,134.16,8.76721135]